[Event "Live Chess"]
[Site "Chess.com"]
[Date "2023.05.20"]
[Round "-"]
[White "parcellforce"]
[Black "Bot_Boy"]
[Result "1-0"]
[WhiteElo "1384"]
[BlackElo "324"]
[TimeControl "300"]
[EndTime "13:48:49 PDT"]
[Termination "parcellforce won on time"]

1. d4 {[%clk 0:04:58.7]} 1... d5 {[%clk 0:04:58]} 2. c4 {[%clk 0:04:58.2]} 2...
Nf6 {[%clk 0:04:54.6]} 3. Nc3 {[%clk 0:04:57.5]} 3... dxc4 {[%clk 0:04:53]} 4.
e4 {[%clk 0:04:55.7]} 4... e6 {[%clk 0:04:31.8]} 5. Bxc4 {[%clk 0:04:53.4]} 5...
Nc6 {[%clk 0:04:28]} 6. Bb5 {[%clk 0:04:51.9]} 6... Bb4 {[%clk 0:04:20]} 7. Qa4
{[%clk 0:04:46]} 7... Bxc3+ {[%clk 0:04:14]} 8. bxc3 {[%clk 0:04:44.9]} 8...
Nxe4 {[%clk 0:04:04.5]} 9. Bxc6+ {[%clk 0:04:41.2]} 9... bxc6 {[%clk 0:04:00.4]}
10. Qxc6+ {[%clk 0:04:40.3]} 10... Qd7 {[%clk 0:03:07.2]} 11. Qxa8 {[%clk
0:04:37.6]} 11... Ke7 {[%clk 0:02:58.9]} 12. Qxe4 {[%clk 0:04:35.5]} 12... g6
{[%clk 0:02:47.2]} 13. Nf3 {[%clk 0:04:33.5]} 13... f5 {[%clk 0:02:37.9]} 14.
Qe5 {[%clk 0:04:26.4]} 14... Rf8 {[%clk 0:02:26.1]} 15. Ba3+ {[%clk 0:04:20]}
15... Kf7 {[%clk 0:02:11.9]} 16. Bxf8 {[%clk 0:04:01.1]} 16... Kxf8 {[%clk
0:02:09.2]} 17. Qh8+ {[%clk 0:03:52.7]} 17... Ke7 {[%clk 0:01:48.8]} 18. Qxh7+
{[%clk 0:03:51]} 18... Kf6 {[%clk 0:01:41.2]} 19. Qxd7 {[%clk 0:03:50.9]} 19...
Bxd7 {[%clk 0:01:40.1]} 20. Ne5 {[%clk 0:03:49.7]} 20... Ba4 {[%clk 0:01:26.5]}
21. O-O {[%clk 0:03:47.9]} 21... c5 {[%clk 0:01:17]} 22. Rfb1 {[%clk 0:03:44.7]}
22... cxd4 {[%clk 0:01:10]} 23. cxd4 {[%clk 0:03:44.6]} 23... a6 {[%clk
0:00:54.1]} 24. Rb6 {[%clk 0:03:42.3]} 24... Bb5 {[%clk 0:00:50.1]} 25. Rb1
{[%clk 0:03:41.6]} 25... f4 {[%clk 0:00:42]} 26. R1xb5 {[%clk 0:03:39.8]} 26...
axb5 {[%clk 0:00:40.8]} 27. Rxb5 {[%clk 0:03:39.7]} 27... Kf5 {[%clk 0:00:32]}
28. a4 {[%clk 0:03:31.4]} 28... g5 {[%clk 0:00:20.2]} 29. f3 {[%clk 0:03:28.2]}
29... g4 {[%clk 0:00:10.7]} 30. Nxg4+ {[%clk 0:03:23.7]} 30... Kg6 {[%clk
0:00:02.7]} 31. Ne5+ {[%clk 0:03:18.9]} 1-0

[Event "Live Chess"]
[Site "Chess.com"]
[Date "2023.05.20"]
[Round "-"]
[White "WelshTiger"]
[Black "Leonid_Starozhilov"]
[Result "0-1"]
[WhiteElo "2396"]
[BlackElo "2646"]
[TimeControl "300"]
[EndTime "13:48:54 PDT"]
[Termination "Leonid_Starozhilov won by checkmate"]

1. e4 {[%clk 0:04:57.7]} 1... Nc6 {[%clk 0:04:58.2]} 2. Bb5 {[%clk 0:04:51.5]}
2... d6 {[%clk 0:04:56.2]} 3. h3 {[%clk 0:04:48.6]} 3... Nf6 {[%clk 0:04:55.1]}
4. d3 {[%clk 0:04:47.4]} 4... g6 {[%clk 0:04:53.8]} 5. Ne2 {[%clk 0:04:44.7]}
5... Bg7 {[%clk 0:04:52.9]} 6. O-O {[%clk 0:04:44.1]} 6... O-O {[%clk
0:04:52.3]} 7. Nbc3 {[%clk 0:04:43.6]} 7... Bd7 {[%clk 0:04:50]} 8. a3 {[%clk
0:04:42.9]} 8... a6 {[%clk 0:04:42.6]} 9. Ba4 {[%clk 0:04:42]} 9... b5 {[%clk
0:04:34.5]} 10. Bb3 {[%clk 0:04:41.1]} 10... Na5 {[%clk 0:04:34.2]} 11. Ba2
{[%clk 0:04:40.4]} 11... c5 {[%clk 0:04:33.6]} 12. Bg5 {[%clk 0:04:37.9]} 12...
h6 {[%clk 0:04:28.1]} 13. Be3 {[%clk 0:04:28.3]} 13... b4 {[%clk 0:04:21.2]} 14.
axb4 {[%clk 0:04:19.1]} 14... cxb4 {[%clk 0:04:21.1]} 15. Nd5 {[%clk 0:04:18.5]}
15... Nxd5 {[%clk 0:04:15]} 16. Bxd5 {[%clk 0:04:17.6]} 16... Nc6 {[%clk
0:04:12.7]} 17. d4 {[%clk 0:04:08.3]} 17... a5 {[%clk 0:04:06.2]} 18. Bb3 {[%clk
0:04:07]} 18... e6 {[%clk 0:03:57.1]} 19. Qd3 {[%clk 0:03:56.6]} 19... Kh7
{[%clk 0:03:54.4]} 20. Bc4 {[%clk 0:03:44.5]} 20... Ne7 {[%clk 0:03:49.9]} 21.
Bb5 {[%clk 0:03:38.9]} 21... Qc7 {[%clk 0:03:36.6]} 22. Bxd7 {[%clk 0:03:32]}
22... Qxd7 {[%clk 0:03:36.5]} 23. c4 {[%clk 0:03:28.1]} 23... bxc3 {[%clk
0:03:26.4]} 24. bxc3 {[%clk 0:03:26.9]} 24... d5 {[%clk 0:03:24.2]} 25. c4
{[%clk 0:03:22.5]} 25... dxc4 {[%clk 0:03:16]} 26. Qxc4 {[%clk 0:03:21.1]} 26...
Rfc8 {[%clk 0:03:15.7]} 27. Qd3 {[%clk 0:03:15.3]} 27... Nc6 {[%clk 0:03:14.4]}
28. Qb5 {[%clk 0:03:01.4]} 28... Rab8 {[%clk 0:03:05.4]} 29. Qa4 {[%clk
0:02:59.7]} 29... Rb4 {[%clk 0:03:04.5]} 30. Qa3 {[%clk 0:02:58.5]} 30... Rcb8
{[%clk 0:02:51.8]} 31. Rfd1 {[%clk 0:02:53.9]} 31... Qb7 {[%clk 0:02:37.4]} 32.
d5 {[%clk 0:02:49.3]} 32... Ne5 {[%clk 0:02:31]} 33. Qxa5 {[%clk 0:02:03.8]}
33... Nc4 {[%clk 0:02:26.4]} 34. Qc5 {[%clk 0:01:49.9]} 34... Nxe3 {[%clk
0:02:19.6]} 35. Qxe3 {[%clk 0:01:49.2]} 35... Bxa1 {[%clk 0:02:15.7]} 36. Rxa1
{[%clk 0:01:47.1]} 36... Rb1+ {[%clk 0:02:07.9]} 37. Rxb1 {[%clk 0:01:45.7]}
37... Qxb1+ {[%clk 0:02:07.8]} 38. Kh2 {[%clk 0:01:45.2]} 38... exd5 {[%clk
0:02:06.9]} 39. exd5 {[%clk 0:01:44.1]} 39... Qf5 {[%clk 0:02:02.7]} 40. Nf4
{[%clk 0:01:35.3]} 40... Rb4 {[%clk 0:01:56.7]} 41. g3 {[%clk 0:01:34]} 41...
Re4 {[%clk 0:01:50.2]} 42. Qa7 {[%clk 0:01:27.3]} 42... Rxf4 {[%clk 0:01:43]}
43. gxf4 {[%clk 0:01:25.9]} 43... Qxf4+ {[%clk 0:01:42.9]} 44. Kg2 {[%clk
0:01:23.4]} 44... Qg5+ {[%clk 0:01:42.3]} 45. Kh2 {[%clk 0:01:21.5]} 45... Qxd5
{[%clk 0:01:42.2]} 46. Qe3 {[%clk 0:01:20.2]} 46... Kg7 {[%clk 0:01:40]} 47. Kg1
{[%clk 0:01:18.7]} 47... Qd1+ {[%clk 0:01:37.5]} 48. Kh2 {[%clk 0:01:17]} 48...
Qd6+ {[%clk 0:01:36.7]} 49. f4 {[%clk 0:01:13.8]} 49... Qf6 {[%clk 0:01:36.6]}
50. Kg3 {[%clk 0:01:11.4]} 50... g5 {[%clk 0:01:35]} 51. Kf3 {[%clk 0:00:58.5]}
51... Qxf4+ {[%clk 0:01:30]} 52. Qxf4 {[%clk 0:00:58.4]} 52... gxf4 {[%clk
0:01:29.8]} 53. Kxf4 {[%clk 0:00:57.8]} 53... Kf6 {[%clk 0:01:28.8]} 54. Kg4
{[%clk 0:00:55.8]} 54... Ke5 {[%clk 0:01:24]} 55. Kh5 {[%clk 0:00:54.8]} 55...
f5 {[%clk 0:01:23.3]} 56. Kxh6 {[%clk 0:00:53.1]} 56... f4 {[%clk 0:01:22.7]}
57. Kg6 {[%clk 0:00:52.2]} 57... f3 {[%clk 0:01:22.4]} 58. h4 {[%clk 0:00:52.1]}
58... f2 {[%clk 0:01:22.3]} 59. h5 {[%clk 0:00:51.8]} 59... f1=Q {[%clk
0:01:22]} 60. h6 {[%clk 0:00:51.4]} 60... Qf6+ {[%clk 0:01:19]} 61. Kh7 {[%clk
0:00:50.8]} 61... Qf7+ {[%clk 0:01:16.4]} 62. Kh8 {[%clk 0:00:50.4]} 62... Kf6
{[%clk 0:01:16.1]} 63. h7 {[%clk 0:00:49.7]} 63... Qg7# {[%clk 0:01:15.9]} 0-1

[Event "Live Chess"]
[Site "Chess.com"]
[Date "2023.05.20"]
[Round "-"]
[White "lucaskk818"]
[Black "Wild_Tiger"]
[Result "1-0"]
[WhiteElo "1886"]
[BlackElo "1072"]
[TimeControl "300"]
[EndTime "13:48:54 PDT"]
[Termination "lucaskk818 won by checkmate"]

1. d4 {[%clk 0:04:58.6]} 1... d5 {[%clk 0:04:57.9]} 2. c4 {[%clk 0:04:57.7]}
2... Bf5 {[%clk 0:04:55.2]} 3. Nf3 {[%clk 0:04:56.7]} 3... e6 {[%clk 0:04:54.4]}
4. Nc3 {[%clk 0:04:55.3]} 4... Bb4 {[%clk 0:04:53]} 5. e3 {[%clk 0:04:51.9]}
5... Bxc3+ {[%clk 0:04:51.4]} 6. bxc3 {[%clk 0:04:51]} 6... Nc6 {[%clk
0:04:48.8]} 7. cxd5 {[%clk 0:04:50.4]} 7... exd5 {[%clk 0:04:46.4]} 8. Bd3
{[%clk 0:04:48.8]} 8... Bg4 {[%clk 0:04:36.5]} 9. h3 {[%clk 0:04:45.8]} 9... Bh5
{[%clk 0:04:35.2]} 10. O-O {[%clk 0:04:44.3]} 10... Nf6 {[%clk 0:04:32.1]} 11.
Ba3 {[%clk 0:04:42.1]} 11... a5 {[%clk 0:04:24.9]} 12. Rb1 {[%clk 0:04:41.2]}
12... b6 {[%clk 0:04:19.6]} 13. Bb5 {[%clk 0:04:40]} 13... Bg6 {[%clk
0:04:03.1]} 14. Bxc6+ {[%clk 0:04:37]} 14... Nd7 {[%clk 0:03:57.8]} 15. Ne5
{[%clk 0:04:29.2]} 15... f6 {[%clk 0:03:21]} 16. Bxd7+ {[%clk 0:04:26.3]} 16...
Qxd7 {[%clk 0:03:14.7]} 17. Nxd7 {[%clk 0:04:26.2]} 17... Kxd7 {[%clk
0:03:13.9]} 18. Qa4+ {[%clk 0:04:23.5]} 18... c6 {[%clk 0:03:10.8]} 19. Rxb6
{[%clk 0:04:21.1]} 19... Rhc8 {[%clk 0:02:54.1]} 20. Rb7+ {[%clk 0:04:17.1]}
20... Rc7 {[%clk 0:02:48.7]} 21. Rxc7+ {[%clk 0:04:14.3]} 21... Kxc7 {[%clk
0:02:48.6]} 22. c4 {[%clk 0:04:06.5]} 22... dxc4 {[%clk 0:02:46.2]} 23. Qxc4
{[%clk 0:04:06.4]} 23... Rb8 {[%clk 0:02:27.8]} 24. Rc1 {[%clk 0:04:04]} 24...
Rb6 {[%clk 0:02:24.8]} 25. Bc5 {[%clk 0:04:01.4]} 25... Rb4 {[%clk 0:02:22.5]}
26. Bxb4 {[%clk 0:03:59.4]} 26... axb4 {[%clk 0:02:22.4]} 27. Qxc6+ {[%clk
0:03:58.5]} 27... Kd8 {[%clk 0:02:19.4]} 28. Qc7+ {[%clk 0:03:58.4]} 28... Ke8
{[%clk 0:02:18.2]} 29. Rc6 {[%clk 0:03:56.2]} 29... Kf8 {[%clk 0:02:15.5]} 30.
Re6 {[%clk 0:03:54.9]} 30... h6 {[%clk 0:02:12]} 31. Qe7+ {[%clk 0:03:53]} 31...
Kg8 {[%clk 0:02:10.5]} 32. Qd8+ {[%clk 0:03:50.9]} 32... Kh7 {[%clk 0:02:08.9]}
33. Re7 {[%clk 0:03:49]} 33... Bh5 {[%clk 0:02:01.6]} 34. Qc7 {[%clk 0:03:48.9]}
34... Kg6 {[%clk 0:01:53.8]} 35. Rxg7+ {[%clk 0:03:48.8]} 35... Kf5 {[%clk
0:01:53.1]} 36. Rh7 {[%clk 0:03:48.7]} 36... Bg6 {[%clk 0:01:25.7]} 37. Qf4+
{[%clk 0:03:48.6]} 37... Ke6 {[%clk 0:01:22.9]} 38. Rxh6 {[%clk 0:03:48.5]}
38... Bd3 {[%clk 0:01:16.9]} 39. Qxf6+ {[%clk 0:03:46.5]} 39... Kd5 {[%clk
0:01:15.1]} 40. Qe5+ {[%clk 0:03:45.3]} 40... Kc4 {[%clk 0:01:14.1]} 41. Qc5#
{[%clk 0:03:44.9]} 1-0

[Event "Live Chess"]
[Site "Chess.com"]
[Date "2023.05.20"]
[Round "-"]
[White "LozzaLoaf"]
[Black "defenderalist"]
[Result "0-1"]
[WhiteElo "262"]
[BlackElo "1612"]
[TimeControl "300"]
[EndTime "13:48:56 PDT"]
[Termination "defenderalist won by checkmate"]

1. d4 {[%clk 0:04:53.2]} 1... Nf6 {[%clk 0:04:58.7]} 2. f4 {[%clk 0:04:49.3]}
2... e6 {[%clk 0:04:58.2]} 3. e3 {[%clk 0:04:46.1]} 3... d5 {[%clk 0:04:57.7]}
4. h4 {[%clk 0:04:43.2]} 4... Be7 {[%clk 0:04:55.4]} 5. g4 {[%clk 0:04:42.1]}
5... Ne4 {[%clk 0:04:52.1]} 6. f5 {[%clk 0:04:39.4]} 6... Bxh4+ {[%clk
0:04:49.1]} 7. Ke2 {[%clk 0:04:31.4]} 7... Ng3+ {[%clk 0:04:47.7]} 8. Kf3 {[%clk
0:04:26.6]} 8... Nxh1 {[%clk 0:04:46.4]} 9. Bg2 {[%clk 0:04:23.1]} 9... Ng3
{[%clk 0:04:44.2]} 10. g5 {[%clk 0:04:17.2]} 10... Nxf5 {[%clk 0:04:41.9]} 11.
Kg4 {[%clk 0:04:15.9]} 11... Bxg5 {[%clk 0:04:38.5]} 12. Kf3 {[%clk 0:04:06.1]}
12... Nh4+ {[%clk 0:04:31.8]} 13. Ke2 {[%clk 0:04:04.4]} 13... Nxg2 {[%clk
0:04:30.7]} 14. Nc3 {[%clk 0:03:57.2]} 14... e5 {[%clk 0:04:29.5]} 15. Nxd5
{[%clk 0:03:55.3]} 15... Qxd5 {[%clk 0:04:24.3]} 16. c3 {[%clk 0:03:48.4]} 16...
Bg4+ {[%clk 0:04:22.3]} 17. Kd2 {[%clk 0:03:40.9]} 17... Bxd1 {[%clk 0:04:20.2]}
18. Kxd1 {[%clk 0:03:39.9]} 18... Nxe3+ {[%clk 0:04:17.7]} 19. Kd2 {[%clk
0:03:38]} 19... exd4 {[%clk 0:04:14.2]} 20. cxd4 {[%clk 0:03:32.8]} 20... Qxd4+
{[%clk 0:04:13.3]} 21. Ke2 {[%clk 0:03:30.1]} 21... Nc2 {[%clk 0:04:10.1]} 22.
Bxg5 {[%clk 0:03:28.6]} 22... Nxa1 {[%clk 0:04:06.4]} 23. Nf3 {[%clk 0:03:27.1]}
23... Qe4+ {[%clk 0:04:03.3]} 24. Kf2 {[%clk 0:03:24.8]} 24... f6 {[%clk
0:04:01.4]} 25. Bh4 {[%clk 0:03:22.6]} 25... g5 {[%clk 0:03:59]} 26. Bg3 {[%clk
0:03:20]} 26... h5 {[%clk 0:03:57.7]} 27. Bxc7 {[%clk 0:03:18.4]} 27... Nc6
{[%clk 0:03:55.6]} 28. b3 {[%clk 0:03:09]} 28... g4 {[%clk 0:03:54.2]} 29. a4
{[%clk 0:03:06.9]} 29... Qxf3+ {[%clk 0:03:52.8]} 30. Ke1 {[%clk 0:03:05.3]}
30... Nd4 {[%clk 0:03:51.3]} 31. Kd2 {[%clk 0:03:04]} 31... Rc8 {[%clk
0:03:45.2]} 32. b4 {[%clk 0:03:01.4]} 32... Rxc7 {[%clk 0:03:44]} 33. b5 {[%clk
0:02:59.7]} 33... Qc3+ {[%clk 0:03:42.5]} 34. Kd1 {[%clk 0:02:57.5]} 34... Qc2+
{[%clk 0:03:41]} 35. Ke1 {[%clk 0:02:56.1]} 35... Qe2# {[%clk 0:03:40.7]} 0-1

[Event "Live Chess"]
[Site "Chess.com"]
[Date "2023.05.20"]
[Round "-"]
[White "Tushinskiy"]
[Black "Fazer180"]
[Result "1-0"]
[WhiteElo "2126"]
[BlackElo "1754"]
[TimeControl "300"]
[EndTime "13:49:00 PDT"]
[Termination "Tushinskiy won by resignation"]

1. d4 {[%clk 0:04:52.4]} 1... e6 {[%clk 0:04:59.9]} 2. c3 {[%clk 0:04:52.3]}
2... d5 {[%clk 0:04:59.8]} 3. Nf3 {[%clk 0:04:51.7]} 3... Nf6 {[%clk 0:04:58.9]}
4. Bf4 {[%clk 0:04:51.2]} 4... Bd6 {[%clk 0:04:56.6]} 5. Bg3 {[%clk 0:04:51.1]}
5... c5 {[%clk 0:04:52]} 6. e3 {[%clk 0:04:48]} 6... Nc6 {[%clk 0:04:49.9]} 7.
Bd3 {[%clk 0:04:47.1]} 7... cxd4 {[%clk 0:04:48.3]} 8. exd4 {[%clk 0:04:46.2]}
8... Qc7 {[%clk 0:04:42.5]} 9. Nbd2 {[%clk 0:04:44.4]} 9... Bd7 {[%clk
0:04:40.5]} 10. Qe2 {[%clk 0:04:42.7]} 10... O-O-O {[%clk 0:04:34.7]} 11. Ne5
{[%clk 0:04:40.9]} 11... Bxe5 {[%clk 0:04:23.7]} 12. dxe5 {[%clk 0:04:40.8]}
12... Ng8 {[%clk 0:04:18]} 13. O-O {[%clk 0:04:38.9]} 13... Nge7 {[%clk
0:04:13.8]} 14. b4 {[%clk 0:04:37.9]} 14... Ng6 {[%clk 0:04:12.1]} 15. a4 {[%clk
0:04:35.5]} 15... Ngxe5 {[%clk 0:04:08.6]} 16. b5 {[%clk 0:04:33.7]} 16... Qa5
{[%clk 0:03:34.8]} 17. bxc6 {[%clk 0:04:30.8]} 17... Nxc6 {[%clk 0:03:33.3]} 18.
c4 {[%clk 0:04:26.7]} 18... Rhe8 {[%clk 0:03:22.3]} 19. Rfc1 {[%clk 0:04:18.4]}
19... b6 {[%clk 0:03:13.2]} 20. Nb3 {[%clk 0:04:13.2]} 20... Qb4 {[%clk
0:03:11.8]} 21. Qc2 {[%clk 0:04:06]} 21... Kb7 {[%clk 0:02:59.6]} 22. Rab1
{[%clk 0:04:02]} 22... Qe7 {[%clk 0:02:49.8]} 23. a5 {[%clk 0:03:57.5]} 23...
Nb4 {[%clk 0:02:44.7]} 24. Qd2 {[%clk 0:03:51.6]} 24... Nxd3 {[%clk 0:02:40.7]}
25. Qxd3 {[%clk 0:03:51.5]} 25... dxc4 {[%clk 0:02:38]} 26. Qxc4 {[%clk
0:03:51.4]} 26... Rc8 {[%clk 0:02:33.8]} 27. a6+ {[%clk 0:03:41.1]} 27... Ka8
{[%clk 0:02:29.8]} 28. Qe4+ {[%clk 0:03:40.2]} 28... Bc6 {[%clk 0:02:17.4]} 29.
Rxc6 {[%clk 0:03:36.8]} 1-0

[Event "Live Chess"]
[Site "Chess.com"]
[Date "2023.05.20"]
[Round "-"]
[White "smoggyrabbit"]
[Black "MartaMost"]
[Result "1-0"]
[WhiteElo "1673"]
[BlackElo "1185"]
[TimeControl "300"]
[EndTime "13:49:01 PDT"]
[Termination "smoggyrabbit won by resignation"]

1. d4 {[%clk 0:04:59.4]} 1... d5 {[%clk 0:04:56]} 2. Nf3 {[%clk 0:04:58.5]} 2...
Bg4 {[%clk 0:04:48.8]} 3. Ne5 {[%clk 0:04:55.3]} 3... Bf5 {[%clk 0:04:45.5]} 4.
c4 {[%clk 0:04:49.9]} 4... dxc4 {[%clk 0:04:41.1]} 5. Nc3 {[%clk 0:04:48.4]}
5... Nd7 {[%clk 0:04:36.2]} 6. Nxc4 {[%clk 0:04:23.7]} 6... Ngf6 {[%clk
0:04:31.3]} 7. f3 {[%clk 0:04:20.9]} 7... h6 {[%clk 0:04:28.2]} 8. e4 {[%clk
0:04:19.8]} 8... Bg6 {[%clk 0:04:27]} 9. Bf4 {[%clk 0:04:04.7]} 9... e6 {[%clk
0:04:24.6]} 10. Nb5 {[%clk 0:04:00.6]} 10... Bb4+ {[%clk 0:04:06.3]} 11. Kf2
{[%clk 0:03:42]} 11... O-O {[%clk 0:04:03.3]} 12. Bxc7 {[%clk 0:03:31.3]} 12...
Qc8 {[%clk 0:03:55.4]} 13. a3 {[%clk 0:02:58.2]} 13... Be7 {[%clk 0:03:52.4]}
14. Rc1 {[%clk 0:02:55.7]} 14... a6 {[%clk 0:03:49.1]} 15. Ncd6 {[%clk
0:02:52.6]} 15... Bxd6 {[%clk 0:03:40.5]} 16. Nxd6 {[%clk 0:02:51.6]} 1-0

[Event "Live Chess"]
[Site "Chess.com"]
[Date "2023.05.20"]
[Round "-"]
[White "Long1968"]
[Black "GMHarry-youtube"]
[Result "0-1"]
[WhiteElo "1078"]
[BlackElo "2075"]
[TimeControl "300"]
[EndTime "13:49:11 PDT"]
[Termination "GMHarry-youtube won on time"]

1. e4 {[%clk 0:04:56.4]} 1... c5 {[%clk 0:04:59]} 2. c3 {[%clk 0:04:53.6]} 2...
d5 {[%clk 0:04:57]} 3. exd5 {[%clk 0:04:48.9]} 3... Qxd5 {[%clk 0:04:56.9]} 4.
d4 {[%clk 0:04:46.1]} 4... g6 {[%clk 0:04:51.3]} 5. Nf3 {[%clk 0:04:41.9]} 5...
Bg7 {[%clk 0:04:48.7]} 6. c4 {[%clk 0:04:29]} 6... Qe4+ {[%clk 0:04:45.8]} 7.
Be2 {[%clk 0:04:22.5]} 7... cxd4 {[%clk 0:04:40.3]} 8. O-O {[%clk 0:04:03.2]}
8... Nf6 {[%clk 0:04:33.9]} 9. Nbd2 {[%clk 0:03:58]} 9... Qc6 {[%clk 0:04:18.3]}
10. Nb3 {[%clk 0:03:52.4]} 10... a6 {[%clk 0:04:07.3]} 11. Nbxd4 {[%clk
0:03:44.4]} 11... Qc7 {[%clk 0:04:05.8]} 12. Be3 {[%clk 0:03:34.1]} 12... O-O
{[%clk 0:04:04.3]} 13. Qc2 {[%clk 0:03:08]} 13... Nc6 {[%clk 0:03:58.7]} 14.
Rfd1 {[%clk 0:02:50]} 14... Nxd4 {[%clk 0:03:52.7]} 15. Bxd4 {[%clk 0:02:46.3]}
15... Bf5 {[%clk 0:03:51.5]} 16. Bd3 {[%clk 0:02:40.1]} 16... Bxd3 {[%clk
0:03:48.2]} 17. Qxd3 {[%clk 0:02:36.4]} 17... Rfd8 {[%clk 0:03:45.8]} 18. Qc3
{[%clk 0:02:30.6]} 18... Ne4 {[%clk 0:03:42.3]} 19. Qd3 {[%clk 0:02:17.2]} 19...
f5 {[%clk 0:03:38]} 20. Qb3 {[%clk 0:01:59.3]} 20... Bxd4 {[%clk 0:03:33.4]} 21.
Rxd4 {[%clk 0:01:52.7]} 21... e5 {[%clk 0:03:24.5]} 22. Rxd8+ {[%clk 0:01:47.2]}
22... Rxd8 {[%clk 0:03:24.4]} 23. Rc1 {[%clk 0:01:27.1]} 23... Qc5 {[%clk
0:03:20.5]} 24. Rf1 {[%clk 0:01:00.6]} 24... g5 {[%clk 0:03:10.5]} 25. Qe3
{[%clk 0:00:35.5]} 25... Qxe3 {[%clk 0:03:07]} 26. fxe3 {[%clk 0:00:28.9]} 26...
Nd2 {[%clk 0:03:04]} 27. Nxd2 {[%clk 0:00:22.9]} 27... Rxd2 {[%clk 0:03:02.5]}
28. Rxf5 {[%clk 0:00:17.4]} 28... Rxb2 {[%clk 0:03:01.1]} 29. Rxg5+ {[%clk
0:00:14.8]} 29... Kf7 {[%clk 0:02:59.8]} 30. Rxe5 {[%clk 0:00:13.5]} 30... Rxa2
{[%clk 0:02:59]} 31. Rh5 {[%clk 0:00:09.4]} 31... Kg6 {[%clk 0:02:57.6]} 32. Rc5
{[%clk 0:00:07]} 32... a5 {[%clk 0:02:56.8]} 33. Rc7 {[%clk 0:00:03.4]} 33... a4
{[%clk 0:02:55.5]} 34. Rxb7 {[%clk 0:00:00.3]} 34... a3 {[%clk 0:02:54.6]} 0-1